[Event "Late-Titled-Tuesday-Blitz-February-06-2024"]
[Site "Chess.com"]
[Date "2024.02.06"]
[Round "5"]
[White "vanyakuba"]
[Black "FrenchHarvey"]
[Result "0-1"]
[WhiteElo "2356"]
[BlackElo "2688"]
[TimeControl "180+1"]
[EndTime "14:54:35 PST"]
[Termination "FrenchHarvey won by checkmate"]

1. e4 {[%clk 0:03:00.9]} 1... c5 {[%clk 0:02:59.8]} 2. c3 {[%clk 0:03:00.6]}
2... d5 {[%clk 0:02:58.7]} 3. exd5 {[%clk 0:03:00.7]} 3... Qxd5 {[%clk
0:02:59.6]} 4. d4 {[%clk 0:03:01.1]} 4... Nc6 {[%clk 0:03:00.3]} 5. Nf3 {[%clk
0:03:01.1]} 5... Bf5 {[%clk 0:03:01]} 6. Be3 {[%clk 0:02:57]} 6... cxd4 {[%clk
0:03:00.9]} 7. cxd4 {[%clk 0:02:56.1]} 7... Bxb1 {[%clk 0:03:00.8]} 8. Qxb1
{[%clk 0:02:38.6]} 8... e6 {[%clk 0:02:59.3]} 9. a3 {[%clk 0:02:20.5]} 9... Nf6
{[%clk 0:02:57]} 10. Bd3 {[%clk 0:02:13.3]} 10... Bd6 {[%clk 0:02:56.6]} 11. O-O
{[%clk 0:02:09]} 11... h6 {[%clk 0:02:56.5]} 12. b4 {[%clk 0:01:57]} 12... O-O
{[%clk 0:02:54.8]} 13. Qa2 {[%clk 0:01:32.3]} 13... Qh5 {[%clk 0:02:53.5]} 14.
Qe2 {[%clk 0:01:25.4]} 14... Nd5 {[%clk 0:02:40.5]} 15. Rac1 {[%clk 0:01:19.9]}
15... Rac8 {[%clk 0:02:38.2]} 16. g3 {[%clk 0:00:51.6]} 16... Nf6 {[%clk
0:02:30.5]} 17. Kg2 {[%clk 0:00:43.7]} 17... Ne7 {[%clk 0:02:29.8]} 18. Nd2
{[%clk 0:00:38.4]} 18... Qxe2 {[%clk 0:02:25.1]} 19. Bxe2 {[%clk 0:00:39.3]}
19... Ned5 {[%clk 0:02:25.6]} 20. Nc4 {[%clk 0:00:37.3]} 20... Bb8 {[%clk
0:02:23.5]} 21. Bf3 {[%clk 0:00:36.2]} 21... b6 {[%clk 0:02:22.6]} 22. Bd2
{[%clk 0:00:29.4]} 22... Rfd8 {[%clk 0:02:20.3]} 23. Ne5 {[%clk 0:00:28.4]}
23... Ne7 {[%clk 0:02:19.6]} 24. Be3 {[%clk 0:00:22.1]} 24... Nf5 {[%clk
0:02:16.6]} 25. Nc6 {[%clk 0:00:18.5]} 25... Re8 {[%clk 0:02:14.7]} 26. Nxb8
{[%clk 0:00:18.1]} 26... Rxb8 {[%clk 0:02:14.9]} 27. Rc7 {[%clk 0:00:18.7]}
27... Rbc8 {[%clk 0:02:06.3]} 28. Rfc1 {[%clk 0:00:18.1]} 28... Rcd8 {[%clk
0:02:03.2]} 29. Rxa7 {[%clk 0:00:17.4]} 29... Nxd4 {[%clk 0:02:03]} 30. Bxd4
{[%clk 0:00:17.9]} 30... Rxd4 {[%clk 0:02:03.4]} 31. Rcc7 {[%clk 0:00:18.6]}
31... Rf8 {[%clk 0:02:01.6]} 32. Rcb7 {[%clk 0:00:16.5]} 32... e5 {[%clk
0:02:02.1]} 33. Rxb6 {[%clk 0:00:13.4]} 33... e4 {[%clk 0:02:02.6]} 34. Be2
{[%clk 0:00:13.6]} 34... Rd2 {[%clk 0:02:02.7]} 35. Kf1 {[%clk 0:00:11.4]} 35...
Rc8 {[%clk 0:02:02.9]} 36. Rbb7 {[%clk 0:00:07.1]} 36... Rc1+ {[%clk 0:02:02.1]}
37. Kg2 {[%clk 0:00:07.5]} 37... Rxe2 {[%clk 0:01:58.9]} 38. Rxf7 {[%clk
0:00:07.8]} 38... Ne8 {[%clk 0:01:54.7]} 39. Rfe7 {[%clk 0:00:04.9]} 39... Rc8
{[%clk 0:01:54.1]} 40. b5 {[%clk 0:00:04.7]} 40... Rb2 {[%clk 0:01:54.1]} 41. a4
{[%clk 0:00:04.3]} 41... e3 {[%clk 0:01:34.2]} 42. Rxe3 {[%clk 0:00:04.3]} 42...
Nd6 {[%clk 0:01:34.7]} 43. Ree7 {[%clk 0:00:03.3]} 43... Nf5 {[%clk 0:01:35]}
44. Rf7 {[%clk 0:00:03.1]} 44... g6 {[%clk 0:01:28.3]} 45. Rfc7 {[%clk
0:00:01.8]} 45... Rf8 {[%clk 0:01:27]} 46. Kh3 {[%clk 0:00:01.4]} 46... Rxf2
{[%clk 0:01:24.5]} 47. b6 {[%clk 0:00:01.9]} 47... h5 {[%clk 0:01:23]} 48. b7
{[%clk 0:00:01.9]} 48... g5 {[%clk 0:01:22.8]} 49. g4 {[%clk 0:00:01.2]} 49...
Rf3+ {[%clk 0:01:22.2]} 50. Kg2 {[%clk 0:00:01.3]} 50... Nh4+ {[%clk 0:01:22.6]}
51. Kg1 {[%clk 0:00:01.2]} 51... Rf1# {[%clk 0:01:22.4]} 0-1

[Event "Late-Titled-Tuesday-Blitz-February-06-2024"]
[Site "Chess.com"]
[Date "2024.02.06"]
[Round "5"]
[White "Igor_Lysyj"]
[Black "DenLaz"]
[Result "0-1"]
[WhiteElo "2881"]
[BlackElo "3053"]
[TimeControl "180+1"]
[EndTime "14:54:40 PST"]
[Termination "DenLaz won by resignation"]

1. d4 {[%clk 0:03:00.2]} 1... Nf6 {[%clk 0:02:58.5]} 2. c4 {[%clk 0:03:00.1]}
2... e6 {[%clk 0:02:59.2]} 3. Nf3 {[%clk 0:03:00.4]} 3... d5 {[%clk 0:02:59.2]}
4. g3 {[%clk 0:03:00.7]} 4... Bb4+ {[%clk 0:02:59.9]} 5. Bd2 {[%clk 0:03:00.5]}
5... Be7 {[%clk 0:03:00.5]} 6. Bg2 {[%clk 0:03:00.3]} 6... O-O {[%clk
0:03:01.1]} 7. O-O {[%clk 0:03:00.1]} 7... Nbd7 {[%clk 0:03:01.6]} 8. Qc2 {[%clk
0:02:59.5]} 8... c6 {[%clk 0:03:01.9]} 9. Rd1 {[%clk 0:02:58.4]} 9... a5 {[%clk
0:02:57.8]} 10. Be1 {[%clk 0:02:58]} 10... Ne4 {[%clk 0:02:45.9]} 11. Nc3 {[%clk
0:02:53.6]} 11... f5 {[%clk 0:02:46.3]} 12. e3 {[%clk 0:02:49.1]} 12... Qe8
{[%clk 0:02:42.1]} 13. a3 {[%clk 0:02:46]} 13... g5 {[%clk 0:02:39.5]} 14. Ne2
{[%clk 0:02:38.1]} 14... Qh5 {[%clk 0:02:37]} 15. b4 {[%clk 0:02:35.5]} 15...
Nb6 {[%clk 0:02:30.6]} 16. cxd5 {[%clk 0:02:31.1]} 16... exd5 {[%clk 0:02:25.7]}
17. bxa5 {[%clk 0:02:25.7]} 17... Nc4 {[%clk 0:02:25.3]} 18. Bb4 {[%clk
0:02:25.4]} 18... Bxb4 {[%clk 0:01:34.1]} 19. axb4 {[%clk 0:02:24.9]} 19... f4
{[%clk 0:01:35]} 20. exf4 {[%clk 0:02:20.9]} 20... Bg4 {[%clk 0:01:34.3]} 21.
Qc3 {[%clk 0:02:17.8]} 21... Rf6 {[%clk 0:01:30.5]} 22. Qd3 {[%clk 0:02:06.9]}
22... Rh6 {[%clk 0:01:20]} 23. h3 {[%clk 0:00:28.9]} 23... Bxh3 {[%clk
0:01:19.2]} 24. fxg5 {[%clk 0:00:29.1]} 24... Bxg2 {[%clk 0:01:16.8]} 25. Nh4
{[%clk 0:00:29.4]} 25... Nxf2 {[%clk 0:01:03.2]} 26. Kxf2 {[%clk 0:00:26.5]}
26... Be4 {[%clk 0:01:03.9]} 27. Qc3 {[%clk 0:00:22.5]} 27... Qxg5 {[%clk
0:01:04.2]} 28. Rh1 {[%clk 0:00:16.9]} 28... Rf8+ {[%clk 0:01:02.2]} 29. Nf4
{[%clk 0:00:17]} 29... Bxh1 {[%clk 0:00:57.9]} 30. Rxh1 {[%clk 0:00:16.2]} 30...
Rxf4+ {[%clk 0:00:51.8]} 31. gxf4 {[%clk 0:00:15.5]} 31... Qxf4+ {[%clk
0:00:52.7]} 32. Kg2 {[%clk 0:00:08.6]} 32... Rxh4 {[%clk 0:00:50.9]} 33. Rxh4
{[%clk 0:00:08.3]} 33... Qxh4 {[%clk 0:00:51.1]} 34. Qf3 {[%clk 0:00:05.8]}
34... Qe4 {[%clk 0:00:47.4]} 35. Qxe4 {[%clk 0:00:03.3]} 35... dxe4 {[%clk
0:00:48.3]} 36. d5 {[%clk 0:00:03.3]} 36... cxd5 {[%clk 0:00:48.1]} 0-1

[Event "Late-Titled-Tuesday-Blitz-February-06-2024"]
[Site "Chess.com"]
[Date "2024.02.06"]
[Round "5"]
[White "AryanTari"]
[Black "manitodeplomo"]
[Result "1-0"]
[WhiteElo "2920"]
[BlackElo "2621"]
[TimeControl "180+1"]
[EndTime "14:54:40 PST"]
[Termination "AryanTari won by checkmate"]

1. g3 {[%clk 0:02:42.7]} 1... c5 {[%clk 0:02:50.3]} 2. c4 {[%clk 0:02:38.8]}
2... Nc6 {[%clk 0:02:47.9]} 3. Bg2 {[%clk 0:02:39]} 3... g6 {[%clk 0:02:48.5]}
4. Nc3 {[%clk 0:02:39.2]} 4... Bg7 {[%clk 0:02:48.5]} 5. d3 {[%clk 0:02:36.5]}
5... e6 {[%clk 0:02:37.6]} 6. h4 {[%clk 0:02:36.3]} 6... h6 {[%clk 0:02:36.5]}
7. h5 {[%clk 0:02:35.8]} 7... g5 {[%clk 0:02:36.3]} 8. f4 {[%clk 0:02:36.6]}
8... f5 {[%clk 0:02:31.5]} 9. Bxc6 {[%clk 0:02:21]} 9... bxc6 {[%clk 0:02:28.5]}
10. Nf3 {[%clk 0:02:20.9]} 10... g4 {[%clk 0:02:24.1]} 11. Nh4 {[%clk
0:02:13.2]} 11... Ne7 {[%clk 0:02:23.3]} 12. e4 {[%clk 0:02:13.1]} 12... O-O
{[%clk 0:02:21.3]} 13. Be3 {[%clk 0:02:11.8]} 13... Qa5 {[%clk 0:01:43.4]} 14.
Qd2 {[%clk 0:02:11.3]} 14... Rb8 {[%clk 0:01:39]} 15. Rc1 {[%clk 0:02:02.2]}
15... d5 {[%clk 0:01:25.4]} 16. Bf2 {[%clk 0:02:02.2]} 16... fxe4 {[%clk
0:01:21.4]} 17. dxe4 {[%clk 0:02:00.5]} 17... d4 {[%clk 0:01:20.4]} 18. Nd1
{[%clk 0:02:00.5]} 18... Qxa2 {[%clk 0:01:18.9]} 19. e5 {[%clk 0:01:56]} 19...
Ba6 {[%clk 0:00:53.1]} 20. Qe2 {[%clk 0:01:52.2]} 20... Rb4 {[%clk 0:00:52]} 21.
Qxg4 {[%clk 0:01:35]} 21... Bxc4 {[%clk 0:00:50.8]} 22. Ng6 {[%clk 0:01:27.5]}
22... Nxg6 {[%clk 0:00:47]} 23. Qxg6 {[%clk 0:01:28.4]} 23... Bd5 {[%clk
0:00:37.6]} 24. O-O {[%clk 0:01:23.2]} 24... Qb3 {[%clk 0:00:33.8]} 25. Qg4
{[%clk 0:01:22.5]} 25... Qd3 {[%clk 0:00:22.5]} 26. Rxc5 {[%clk 0:01:18]} 26...
Qe4 {[%clk 0:00:21.7]} 27. Qh3 {[%clk 0:01:18.4]} 27... Rfb8 {[%clk 0:00:19.3]}
28. g4 {[%clk 0:01:13.5]} 28... Rb3 {[%clk 0:00:17.5]} 29. Qh2 {[%clk
0:01:10.4]} 29... Rd3 {[%clk 0:00:17.1]} 30. Bh4 {[%clk 0:00:56.2]} 30... Rbb3
{[%clk 0:00:16.1]} 31. Nf2 {[%clk 0:00:55.3]} 31... Qe3 {[%clk 0:00:14.3]} 32.
g5 {[%clk 0:00:46.9]} 32... Rd2 {[%clk 0:00:11.4]} 33. gxh6 {[%clk 0:00:44.5]}
33... Bxh6 {[%clk 0:00:07.9]} 34. Rxd5 {[%clk 0:00:45.1]} 34... cxd5 {[%clk
0:00:07.2]} 35. Qg2+ {[%clk 0:00:45.8]} 35... Kh8 {[%clk 0:00:07.1]} 36. Bf6+
{[%clk 0:00:45.1]} 36... Kh7 {[%clk 0:00:05.4]} 37. Qg6# {[%clk 0:00:42.2]} 1-0

[Event "Late-Titled-Tuesday-Blitz-February-06-2024"]
[Site "Chess.com"]
[Date "2024.02.06"]
[Round "5"]
[White "DeArron_Fox"]
[Black "aleksanchess"]
[Result "1-0"]
[WhiteElo "2494"]
[BlackElo "2226"]
[TimeControl "180+1"]
[EndTime "14:54:40 PST"]
[Termination "DeArron_Fox won by resignation"]

1. d4 {[%clk 0:03:00.9]} 1... d5 {[%clk 0:02:59.2]} 2. c4 {[%clk 0:03:01.1]}
2... e6 {[%clk 0:02:59.2]} 3. Nc3 {[%clk 0:03:01.6]} 3... c6 {[%clk 0:02:59.3]}
4. e3 {[%clk 0:03:01.8]} 4... Bd6 {[%clk 0:02:58.5]} 5. Nf3 {[%clk 0:02:53.8]}
5... f5 {[%clk 0:02:57.8]} 6. Ne5 {[%clk 0:02:52.7]} 6... Nd7 {[%clk 0:02:49.9]}
7. f4 {[%clk 0:02:52.2]} 7... Ngf6 {[%clk 0:02:31.1]} 8. Be2 {[%clk 0:02:51.6]}
8... O-O {[%clk 0:02:25.6]} 9. O-O {[%clk 0:02:51.2]} 9... Ne4 {[%clk
0:02:22.8]} 10. Nxe4 {[%clk 0:02:37.4]} 10... fxe4 {[%clk 0:02:22.2]} 11. Bd2
{[%clk 0:02:32.7]} 11... Nf6 {[%clk 0:02:13.9]} 12. a3 {[%clk 0:02:11.5]} 12...
c5 {[%clk 0:02:12.8]} 13. Bc3 {[%clk 0:02:05.8]} 13... cxd4 {[%clk 0:02:10.7]}
14. Bxd4 {[%clk 0:02:06.7]} 14... b6 {[%clk 0:02:05.6]} 15. cxd5 {[%clk
0:01:57.3]} 15... exd5 {[%clk 0:02:03.1]} 16. Rc1 {[%clk 0:01:53.5]} 16... Bb7
{[%clk 0:01:56.1]} 17. Bg4 {[%clk 0:01:45.1]} 17... Ba6 {[%clk 0:01:28.2]} 18.
Be6+ {[%clk 0:01:25]} 18... Kh8 {[%clk 0:01:27.9]} 19. Nf7+ {[%clk 0:01:03.3]}
19... Rxf7 {[%clk 0:01:28.1]} 20. Bxf7 {[%clk 0:01:04.2]} 20... Bxf1 {[%clk
0:01:27.7]} 21. Qxf1 {[%clk 0:01:04.4]} 21... Rc8 {[%clk 0:01:23.4]} 22. Bxf6
{[%clk 0:00:53.2]} 22... gxf6 {[%clk 0:01:19.8]} 23. Bxd5 {[%clk 0:00:51.8]}
23... Bc5 {[%clk 0:01:16.6]} 24. Rd1 {[%clk 0:00:42.8]} 24... Bxe3+ {[%clk
0:01:16.7]} 25. Kh1 {[%clk 0:00:43.5]} 25... Qe7 {[%clk 0:01:13.6]} 26. Re1
{[%clk 0:00:41.1]} 26... Rd8 {[%clk 0:01:00.2]} 27. Qc4 {[%clk 0:00:28]} 27...
Qd6 {[%clk 0:00:56.1]} 28. Bxe4 {[%clk 0:00:07.3]} 28... Qxf4 {[%clk 0:00:55.1]}
29. Qf7 {[%clk 0:00:04.5]} 29... Qxe4 {[%clk 0:00:50.3]} 30. Qxf6+ {[%clk
0:00:04.4]} 30... Kg8 {[%clk 0:00:49.9]} 31. Qxd8+ {[%clk 0:00:05.3]} 31... Kg7
{[%clk 0:00:50.5]} 32. Qc7+ {[%clk 0:00:04.9]} 32... Kg6 {[%clk 0:00:47.6]} 33.
Qg3+ {[%clk 0:00:04.6]} 33... Kf5 {[%clk 0:00:44.8]} 34. Qxe3 {[%clk 0:00:04.9]}
34... Qg4 {[%clk 0:00:43.3]} 35. Qf3+ {[%clk 0:00:04.6]} 1-0

[Event "Late-Titled-Tuesday-Blitz-February-06-2024"]
[Site "Chess.com"]
[Date "2024.02.06"]
[Round "5"]
[White "thesupera12"]
[Black "kekic76"]
[Result "1/2-1/2"]
[WhiteElo "2512"]
[BlackElo "2380"]
[TimeControl "180+1"]
[EndTime "14:54:41 PST"]
[Termination "Game drawn - insufficient material"]

1. e4 {[%clk 0:02:58.1]} 1... e6 {[%clk 0:02:58.5]} 2. d4 {[%clk 0:02:55.3]}
2... d5 {[%clk 0:02:58.6]} 3. Nd2 {[%clk 0:02:54.6]} 3... c5 {[%clk 0:02:55.2]}
4. exd5 {[%clk 0:02:52.6]} 4... Qxd5 {[%clk 0:02:55.3]} 5. dxc5 {[%clk
0:02:47.5]} 5... Bxc5 {[%clk 0:02:54.4]} 6. Qf3 {[%clk 0:02:48.1]} 6... Qxf3
{[%clk 0:02:53.5]} 7. Ngxf3 {[%clk 0:02:49]} 7... a6 {[%clk 0:02:53.4]} 8. Bd3
{[%clk 0:02:48.4]} 8... Nc6 {[%clk 0:02:53.5]} 9. Ne4 {[%clk 0:02:48.3]} 9...
Be7 {[%clk 0:02:52.4]} 10. O-O {[%clk 0:02:48.8]} 10... Nb4 {[%clk 0:02:52.1]}
11. Rd1 {[%clk 0:02:47.8]} 11... Nxd3 {[%clk 0:02:51.7]} 12. Rxd3 {[%clk
0:02:48.7]} 12... Nf6 {[%clk 0:02:51.8]} 13. Nd6+ {[%clk 0:02:48.9]} 13... Bxd6
{[%clk 0:02:49.5]} 14. Rxd6 {[%clk 0:02:49.8]} 14... Ke7 {[%clk 0:02:47.8]} 15.
Rb6 {[%clk 0:02:40.8]} 15... Nd5 {[%clk 0:02:44.8]} 16. Rb3 {[%clk 0:02:39.8]}
16... f6 {[%clk 0:02:28.6]} 17. c4 {[%clk 0:02:39.4]} 17... Nc7 {[%clk
0:02:25.8]} 18. Bf4 {[%clk 0:02:38.7]} 18... e5 {[%clk 0:02:25.7]} 19. Be3
{[%clk 0:02:38.2]} 19... Ne6 {[%clk 0:02:24.9]} 20. Nd2 {[%clk 0:02:29.4]} 20...
Rd8 {[%clk 0:02:21.2]} 21. Ne4 {[%clk 0:02:27.8]} 21... Nd4 {[%clk 0:02:11.9]}
22. Bxd4 {[%clk 0:02:24.3]} 22... Rxd4 {[%clk 0:02:12.8]} 23. Nc5 {[%clk
0:02:22.7]} 23... Rxc4 {[%clk 0:02:10.9]} 24. Nxb7 {[%clk 0:02:23.3]} 24... Rb8
{[%clk 0:02:02.4]} 25. Na5 {[%clk 0:02:21.4]} 25... Rxb3 {[%clk 0:02:02.3]} 26.
Nxc4 {[%clk 0:02:20.5]} 26... Rd3 {[%clk 0:01:56.7]} 27. h3 {[%clk 0:02:17]}
27... Be6 {[%clk 0:01:56.8]} 28. Ne3 {[%clk 0:02:16.2]} 28... Rd2 {[%clk
0:01:55.9]} 29. b4 {[%clk 0:02:13.1]} 29... f5 {[%clk 0:01:54.6]} 30. a4 {[%clk
0:02:11.8]} 30... f4 {[%clk 0:01:54.7]} 31. Ng4 {[%clk 0:02:08.7]} 31... Bxg4
{[%clk 0:01:53.2]} 32. hxg4 {[%clk 0:02:09.6]} 32... Rb2 {[%clk 0:01:53.3]} 33.
b5 {[%clk 0:02:09.7]} 33... axb5 {[%clk 0:01:53.2]} 34. a5 {[%clk 0:02:09.5]}
34... Rd2 {[%clk 0:01:42.6]} 35. a6 {[%clk 0:02:09.4]} 35... Rd8 {[%clk
0:01:42.2]} 36. Ra5 {[%clk 0:02:09.3]} 36... Ra8 {[%clk 0:01:39.1]} 37. Rxb5
{[%clk 0:02:08.9]} 37... Rxa6 {[%clk 0:01:22.8]} 38. Rxe5+ {[%clk 0:02:08.9]}
38... Re6 {[%clk 0:01:22.7]} 39. Rf5 {[%clk 0:02:08.3]} 39... Rf6 {[%clk
0:01:22.6]} 40. Ra5 {[%clk 0:02:08.8]} 40... h6 {[%clk 0:01:11.5]} 41. Kh2
{[%clk 0:02:06.7]} 41... g5 {[%clk 0:01:08.2]} 42. g3 {[%clk 0:02:04.3]} 42...
Kf7 {[%clk 0:01:03.9]} 43. Kg2 {[%clk 0:02:02.6]} 43... Kg6 {[%clk 0:01:02.4]}
44. Kf3 {[%clk 0:02:02.6]} 44... fxg3+ {[%clk 0:01:01.9]} 45. Kxg3 {[%clk
0:02:03.5]} 45... Rc6 {[%clk 0:01:01.8]} 46. Rb5 {[%clk 0:02:01.6]} 46... Rd6
{[%clk 0:01:01.8]} 47. Rc5 {[%clk 0:02:01]} 47... Ra6 {[%clk 0:01:01.8]} 48. Rc8
{[%clk 0:02:01.5]} 48... Rb6 {[%clk 0:00:58.5]} 49. Rg8+ {[%clk 0:02:01.9]}
49... Kh7 {[%clk 0:00:58]} 50. Rd8 {[%clk 0:02:02.8]} 50... Kg6 {[%clk
0:00:57.4]} 51. Rd7 {[%clk 0:02:02.2]} 51... Rc6 {[%clk 0:00:57.3]} 52. Kf3
{[%clk 0:02:01.7]} 52... Rc3+ {[%clk 0:00:53.5]} 53. Ke4 {[%clk 0:02:00.7]}
53... Rc4+ {[%clk 0:00:46.9]} 54. Kf3 {[%clk 0:01:53.3]} 54... Rc6 {[%clk
0:00:42.5]} 55. Rd4 {[%clk 0:01:52.2]} 55... Rb6 {[%clk 0:00:41.2]} 56. Ke4
{[%clk 0:01:52]} 56... Rf6 {[%clk 0:00:39.5]} 57. Ke3 {[%clk 0:01:41]} 57... h5
{[%clk 0:00:39.9]} 58. gxh5+ {[%clk 0:01:40]} 58... Kxh5 {[%clk 0:00:40.3]} 59.
Rd8 {[%clk 0:01:40.2]} 59... Re6+ {[%clk 0:00:37.4]} 60. Kf3 {[%clk 0:01:39.7]}
60... Ra6 {[%clk 0:00:37.2]} 61. Kg3 {[%clk 0:01:40]} 61... Ra3+ {[%clk
0:00:35.5]} 62. f3 {[%clk 0:01:40.3]} 62... Ra4 {[%clk 0:00:34.9]} 63. Rh8+
{[%clk 0:01:39.2]} 63... Kg6 {[%clk 0:00:35.2]} 64. Rb8 {[%clk 0:01:39.9]} 64...
Kf5 {[%clk 0:00:34.9]} 65. Rb5+ {[%clk 0:01:39.5]} 65... Kg6 {[%clk 0:00:35.1]}
66. Rb3 {[%clk 0:01:40]} 66... Kf5 {[%clk 0:00:35.2]} 67. Re3 {[%clk 0:01:39.5]}
67... g4 {[%clk 0:00:31.8]} 68. fxg4+ {[%clk 0:01:38.2]} 68... Rxg4+ {[%clk
0:00:32.7]} 69. Kf2 {[%clk 0:01:37.8]} 69... Rf4+ {[%clk 0:00:32.7]} 70. Rf3
{[%clk 0:01:38.5]} 70... Rxf3+ {[%clk 0:00:32.9]} 71. Kxf3 {[%clk 0:01:38.7]}
1/2-1/2

[Event "Late-Titled-Tuesday-Blitz-February-06-2024"]
[Site "Chess.com"]
[Date "2024.02.06"]
[Round "5"]
[White "Nouali_Mohamed"]
[Black "Felix-Rose"]
[Result "1-0"]
[WhiteElo "2575"]
[BlackElo "2386"]
[TimeControl "180+1"]
[EndTime "14:54:42 PST"]
[Termination "Nouali_Mohamed won on time"]

1. e4 {[%clk 0:03:00.8]} 1... e5 {[%clk 0:02:59.3]} 2. Bc4 {[%clk 0:03:00.8]}
2... Nf6 {[%clk 0:02:59.5]} 3. Nc3 {[%clk 0:03:01.2]} 3... Nc6 {[%clk
0:02:57.2]} 4. d3 {[%clk 0:03:01.2]} 4... Bc5 {[%clk 0:02:51.5]} 5. f4 {[%clk
0:03:01.1]} 5... d6 {[%clk 0:02:51.3]} 6. Nf3 {[%clk 0:03:01]} 6... h6 {[%clk
0:02:35.2]} 7. Na4 {[%clk 0:02:56]} 7... Bb6 {[%clk 0:02:14.3]} 8. Nxb6 {[%clk
0:02:55.1]} 8... axb6 {[%clk 0:02:15]} 9. O-O {[%clk 0:02:54.2]} 9... O-O {[%clk
0:02:06]} 10. a4 {[%clk 0:02:33]} 10... exf4 {[%clk 0:01:40.7]} 11. Bxf4 {[%clk
0:02:31.2]} 11... d5 {[%clk 0:01:40.9]} 12. exd5 {[%clk 0:02:22.5]} 12... Nxd5
{[%clk 0:01:12.3]} 13. Bxd5 {[%clk 0:02:16.4]} 13... Qxd5 {[%clk 0:01:13.2]} 14.
Bxc7 {[%clk 0:02:17]} 14... Bg4 {[%clk 0:01:12.8]} 15. Bxb6 {[%clk 0:02:13.7]}
15... Ra6 {[%clk 0:01:03.4]} 16. c4 {[%clk 0:01:56.2]} 16... Qd7 {[%clk
0:00:24.6]} 17. a5 {[%clk 0:01:49.2]} 17... Rfa8 {[%clk 0:00:19]} 18. Qd2 {[%clk
0:01:41.2]} 18... Bxf3 {[%clk 0:00:17.4]} 19. gxf3 {[%clk 0:01:36.8]} 19... Ne5
{[%clk 0:00:16.7]} 20. Rad1 {[%clk 0:01:31.3]} 20... Qf5 {[%clk 0:00:11.5]} 21.
Qe2 {[%clk 0:01:24.1]} 21... Ng6 {[%clk 0:00:08.1]} 22. Qe4 {[%clk 0:01:17.5]}
22... Qf6 {[%clk 0:00:08.3]} 23. f4 {[%clk 0:00:47]} 23... Qxb2 {[%clk
0:00:07.4]} 24. f5 {[%clk 0:00:35.9]} 24... Ne5 {[%clk 0:00:07.8]} 25. Bd4
{[%clk 0:00:32.8]} 1-0

[Event "Late-Titled-Tuesday-Blitz-February-06-2024"]
[Site "Chess.com"]
[Date "2024.02.06"]
[Round "5"]
[White "egnfanclub"]
[Black "katharinareinecke"]
[Result "1-0"]
[WhiteElo "2362"]
[BlackElo "1976"]
[TimeControl "180+1"]
[EndTime "14:54:45 PST"]
[Termination "egnfanclub won on time"]

1. e4 {[%clk 0:03:00.9]} 1... c6 {[%clk 0:02:59.3]} 2. d4 {[%clk 0:03:00.5]}
2... d5 {[%clk 0:02:58.6]} 3. exd5 {[%clk 0:03:01.4]} 3... cxd5 {[%clk
0:02:58.6]} 4. c4 {[%clk 0:03:02]} 4... Nf6 {[%clk 0:02:50.9]} 5. Nc3 {[%clk
0:03:02.5]} 5... Be6 {[%clk 0:02:50.5]} 6. Nf3 {[%clk 0:03:03.1]} 6... Nc6
{[%clk 0:02:42.7]} 7. c5 {[%clk 0:02:56]} 7... g6 {[%clk 0:02:33]} 8. Qb3 {[%clk
0:02:41.4]} 8... Qc8 {[%clk 0:02:27.8]} 9. Bb5 {[%clk 0:02:24.7]} 9... Bg7
{[%clk 0:02:23.4]} 10. O-O {[%clk 0:02:24.1]} 10... O-O {[%clk 0:02:22.8]} 11.
Re1 {[%clk 0:02:24.2]} 11... b6 {[%clk 0:02:15]} 12. Bxc6 {[%clk 0:02:16.1]}
12... Qxc6 {[%clk 0:02:13.9]} 13. Ne5 {[%clk 0:02:16.4]} 13... Qb7 {[%clk
0:01:52.9]} 14. c6 {[%clk 0:02:13.8]} 14... Qc8 {[%clk 0:01:49.4]} 15. Bg5
{[%clk 0:01:47.9]} 15... Rd8 {[%clk 0:01:38]} 16. Rac1 {[%clk 0:01:46.7]} 16...
h6 {[%clk 0:01:36.1]} 17. Bh4 {[%clk 0:01:46]} 17... g5 {[%clk 0:01:35.7]} 18.
Bg3 {[%clk 0:01:45.8]} 18... Ne4 {[%clk 0:01:35.8]} 19. c7 {[%clk 0:01:23.3]}
19... Qxc7 {[%clk 0:01:13.7]} 20. Nxe4 {[%clk 0:01:18.5]} 20... Qxc1 {[%clk
0:00:45.8]} 21. Rxc1 {[%clk 0:01:15.7]} 21... dxe4 {[%clk 0:00:46.1]} 22. Qb4
{[%clk 0:01:11.4]} 22... f5 {[%clk 0:00:18.7]} 23. f4 {[%clk 0:01:03.9]} 23...
g4 {[%clk 0:00:15.7]} 24. Nc6 {[%clk 0:01:01.9]} 24... Rd7 {[%clk 0:00:13.4]}
25. Bh4 {[%clk 0:01:00.4]} 25... Bxa2 {[%clk 0:00:10]} 26. Nxe7+ {[%clk
0:00:56.6]} 26... Kf7 {[%clk 0:00:09.8]} 27. Nxf5 {[%clk 0:00:56.8]} 27... Bxd4+
{[%clk 0:00:06.4]} 28. Kh1 {[%clk 0:00:55]} 28... Bc5 {[%clk 0:00:06.6]} 29. Qc3
{[%clk 0:00:52.2]} 29... Rad8 {[%clk 0:00:05.9]} 30. Bxd8 {[%clk 0:00:48.8]}
30... Rxd8 {[%clk 0:00:04.8]} 31. Qg7+ {[%clk 0:00:46]} 31... Ke8 {[%clk
0:00:04.3]} 32. Qxa7 {[%clk 0:00:41.6]} 32... Be3 {[%clk 0:00:02.7]} 33. Qxa2
{[%clk 0:00:37.2]} 33... Bxc1 {[%clk 0:00:01.8]} 34. Qe6+ {[%clk 0:00:37.8]}
34... Kf8 {[%clk 0:00:01.2]} 35. Qe7+ {[%clk 0:00:38.3]} 1-0